bitfinex/quotes_SOLUSD_20220104
["timestamp","ask_amount","ask_price","bid_price","bid_amount"]
[1641258523525,2.43645757,168.59,168.49,28.67192554]
[1641258523724,1.67645757,168.57,168.49,28.67192554]
[1641258523925,2.25356891,168.56,168.49,28.67192554]
[1641258524325,1.67645757,168.55,168.49,28.93192554]
[1641258524524,1.93645757,168.55,168.49,28.93192554]
[1641258524926,2.38947794,168.53,168.49,28.93192554]
[1641258525428,2.38947794,168.53,168.49,0.26]
[1641258525828,2.38947794,168.53,168.42,44.63587571]
[1641258525829,2.38947794,168.53,168.42,45.39587571]
[1641258526029,2.64947794,168.53,168.42,45.39587571]
[1641258526425,2.64947794,168.53,168.43,27.58458093]
[1641258526827,2.64947794,168.53,168.43,28.08458093]
[1641258527026,2.64947794,168.53,168.43,28.34458093]
[1641258527227,2.64947794,168.53,168.43,27.84458093]
[1641258527728,2.38947794,168.53,168.43,27.58458093]
[1641258528127,1.67645757,168.54,168.44,8.56]
[1641258528329,1.67645757,168.54,168.44,9.06]
[1641258528527,1.67645757,168.54,168.45,10.49450296]
[1641258528728,1.67645757,168.54,168.47,25.16342602]
[1641258528930,1.67645757,168.54,168.47,25.66342602]
[1641258529129,4.68887611,168.58,168.47,25.92342602]
[1641258529531,4.94887611,168.58,168.47,25.92342602]
[1641258530133,3.27241854,168.58,168.47,25.92342602]
[1641258530532,3.27241854,168.58,168.47,34.48342602]
[1641258530835,4.94887611,168.58,168.47,34.48342602]
[1641258534637,4.68887611,168.58,168.47,34.48342602]
[1641258534838,1.67645757,168.58,168.47,34.48342602]
[1641258535037,1.67645757,168.58,168.47,39.11142602]
[1641258535637,1.67645757,168.58,168.47,49.60592898]
[1641258535836,2.88680835,168.58,168.47,49.60592898]
[1641258536039,2.88680835,168.58,168.47,73.21422898]
[1641258538640,3.14680835,168.58,168.47,73.21422898]
[1641258540041,3.14680835,168.58,168.47,62.71972602]
[1641258540245,3.14680835,168.58,168.47,57.83172602]
[1641258540439,3.64680835,168.58,168.47,57.83172602]
[1641258541042,5.32326592,168.58,168.47,57.83172602]
[1641258541742,1.67645757,168.57,168.47,49.03172602]
[1641258541941,2.43645757,168.57,168.46,1.3675]
[1641258542142,2.43645757,168.57,168.44,24.8003]
[1641258542143,1.67645757,168.56,168.44,24.8003]
[1641258542344,2.77747686,168.55,168.44,24.8003]
[1641258542542,3.03747686,168.55,168.44,24.8003]
[1641258542742,3.53747686,168.55,168.44,24.8003]
[1641258542942,3.53747686,168.55,168.45,23.6721923]
[1641258543144,1.67645757,168.54,168.45,23.6721923]
[1641258543343,2.17645757,168.54,168.45,23.6721923]
[1641258543542,2.43645757,168.54,168.45,23.9321923]
[1641258543945,1.67645757,168.53,168.45,23.9321923]
[1641258544343,0.26,168.53,168.45,23.9321923]
[1641258544745,2.95415709,168.52,168.45,23.9321923]
[1641258545167,3.21415709,168.52,168.45,23.9321923]
[1641258546349,3.21415709,168.52,168.45,23.6721923]
[1641258546749,3.71415709,168.52,168.41,24.507]
[1641258546948,3.71415709,168.52,168.41,0.5]
[1641258547347,3.71415709,168.52,168.39,111.4528]
[1641258547649,28.06815359,168.52,168.4,24.50472181]
[1641258547947,28.06815359,168.52,168.4,25.00472181]
[1641258548349,26.39169602,168.52,168.4,25.00472181]
[1641258548748,26.39169602,168.52,168.4,25.26472181]
[1641258550648,26.39169602,168.52,168.4,24.76472181]
[1641258551248,26.39169602,168.52,168.4,47.49492181]
[1641258551948,26.39169602,168.52,168.4,24.76472181]
[1641258552949,26.39169602,168.52,168.4,24.50472181]
[1641258554353,1.67645757,168.51,168.4,24.50472181]
[1641258554553,1.93645757,168.51,168.4,24.50472181]
[1641258554753,2.43645757,168.51,168.4,24.50472181]
[1641258556053,1.67645757,168.5,168.4,24.50472181]
[1641258556253,2.3208454,168.49,168.4,24.50472181]
[1641258556456,3.0808454,168.49,168.4,24.50472181]
[1641258558055,3.0808454,168.49,168.38,34.1497]
[1641258558256,3.0808454,168.49,168.38,25.032]
[1641258558555,11.6408454,168.49,168.38,23.7856]
[1641258559154,11.6408454,168.49,168.35,1.3315]
[1641258559355,11.6408454,168.49,168.34,29.72420629]
[1641258559757,1.67645757,168.48,168.31,8.56]
[1641258559958,8.56,168.47,168.32,94.2]
[1641258560205,76.30729483,168.46,168.33,23.3531]
[1641258560503,78.7437524,168.46,168.33,24.1131]
[1641258560700,26.73603113,168.45,168.34,31.7849072]
[1641258560901,27.23603113,168.45,168.34,31.7849072]
[1641258561100,27.49603113,168.45,168.34,32.0449072]
[1641258563001,27.49603113,168.45,168.34,32.5449072]
[1641258563801,27.23603113,168.45,168.34,32.5449072]
[1641258564802,26.73603113,168.45,168.34,32.5449072]
[1641258565603,26.73603113,168.45,168.34,33.8063072]
[1641258565801,27.49603113,168.45,168.34,33.8063072]
[1641258566905,0.76,168.45,168.34,33.8063072]
[1641258567105,0.5,168.45,168.34,33.8063072]
[1641258567304,77.06729483,168.46,168.34,33.8063072]
[1641258567505,85.62729483,168.46,168.35,23.4711]
[1641258567907,85.36729483,168.46,168.35,24.2311]
[1641258569112,76.80729483,168.46,168.35,24.2311]
[1641258570412,77.06729483,168.46,168.35,24.2311]
[1641258571617,73.9611,168.46,168.35,32.7911]
[1641258571819,1.67645757,168.5,168.35,43.28560296]
[1641258572017,1.67645757,168.5,168.36,9.46297571]
[1641258572215,1.67645757,168.5,168.37,8.56]
[1641258572417,1.67645757,168.52,168.38,23.0282]
[1641258572618,1.67645757,168.52,168.39,8.56]
[1641258572816,2.6389897,168.51,168.39,9.06]
[1641258573019,2.6389897,168.51,168.39,9.32]
[1641258573215,2.6389897,168.51,168.41,31.02099294]
[1641258573417,2.6389897,168.51,168.41,31.52099294]
[1641258573717,2.6389897,168.51,168.41,40.34099294]
[1641258578620,2.8989897,168.51,168.41,40.08099294]
[1641258578821,3.3989897,168.51,168.4,25.6251]
[1641258579020,3.3989897,168.51,168.4,25.8851]
[1641258579321,1.67645757,168.5,168.4,25.8851]
[1641258579523,1.93645757,168.5,168.4,24.5321]
[1641258579722,2.43645757,168.5,168.4,24.5321]
[1641258580121,2.43645757,168.5,168.4,0.26]
[1641258580522,2.43645757,168.5,168.39,29.94090656]
[1641258582524,2.43645757,168.5,168.39,29.68090656]
[1641258582725,10.99645757,168.5,168.39,29.68090656]
[1641258582924,10.99645757,168.5,168.34,31.8202]
[1641258583226,2.48595764,168.47,168.34,23.2602]
[1641258583424,2.98595764,168.47,168.34,23.7602]
[1641258583725,11.80595764,168.47,168.34,23.7602]
[1641258583926,42.62039122,168.47,168.35,25.03065342]
[1641258584429,42.62039122,168.47,168.35,25.53065342]
[1641258586027,40.94393365,168.47,168.35,25.53065342]
[1641258586949,11.80595764,168.47,168.35,25.79065342]
[1641258587751,11.30595764,168.47,168.35,25.79065342]
[1641258588054,11.54595764,168.47,168.35,25.79065342]
[1641258588254,11.04595764,168.47,168.36,23.9339]
[1641258588551,11.04595764,168.47,168.36,24.6939]
[1641258588952,11.04595764,168.47,168.36,26.0402]
[1641258589151,2.48595764,168.47,168.36,26.0402]
[1641258589754,24.4045,168.49,168.36,26.0402]
[1641258590354,1.5614,168.49,168.36,26.0402]
[1641258590556,0.26,168.49,168.36,26.0402]
[1641258590754,8.82,168.51,168.36,26.0402]
[1641258590954,3.05363678,168.5,168.36,26.0402]
[1641258591954,3.55363678,168.5,168.36,26.0402]
[1641258592755,3.81363678,168.5,168.36,26.0402]
[1641258592956,3.55363678,168.5,168.36,26.0402]
[1641258594456,3.81363678,168.5,168.36,26.0402]
[1641258595256,3.81363678,168.5,168.36,34.6002]
[1641258600459,12.37363678,168.5,168.36,33.8402]
[1641258600660,12.37363678,168.5,168.35,25.03065342]
[1641258601660,12.39968056,168.49,168.35,25.03065342]
[1641258601860,8.56,168.48,168.35,25.03065342]
[1641258602060,3.82257004,168.47,168.35,25.03065342]
[1641258602265,8.56,168.46,168.35,25.03065342]
[1641258602465,9.32,168.46,168.35,25.03065342]
[1641258603467,9.32,168.46,168.35,25.53065342]
[1641258603669,9.32,168.46,168.35,25.03065342]
[1641258603967,9.32,168.46,168.35,25.29065342]
[1641258604867,9.32,168.46,168.35,25.79065342]
[1641258606468,8.82,168.46,168.35,25.79065342]
[1641258606668,3.82257004,168.47,168.35,25.79065342]
[1641258607069,2.14611247,168.47,168.36,24.492]
[1641258607269,2.14611247,168.47,168.36,33.052]
[1641258607469,2.14611247,168.47,168.36,33.812]
[1641258607968,2.14611247,168.47,168.36,35.1614]
[1641258608171,3.03645757,168.51,168.36,35.1614]
[1641258608371,3.79645757,168.51,168.36,35.1614]
[1641258608873,3.29645757,168.51,168.36,35.1614]
[1641258609073,1.67645757,168.51,168.36,51.02990296]
[1641258609275,80.02952073,168.53,168.36,51.02990296]
[1641258609473,80.02952073,168.53,168.4,8.9024]
[1641258609674,4.15062073,168.53,168.41,8.56]
[1641258609875,4.15062073,168.53,168.42,29.27296299]
[1641258610074,4.15062073,168.53,168.43,8.56]
[1641258610280,2.47416316,168.53,168.43,8.56]
[1641258610480,2.47416316,168.53,168.43,9.32]
[1641258612802,1.67645757,168.56,168.43,9.32]
[1641258613001,1.93645757,168.56,168.44,23.2763]
[1641258613199,0.26,168.56,168.44,23.2763]
[1641258613400,0.26,168.56,168.45,1.2513]
[1641258613601,76.0336,168.58,168.45,1.5113]
[1641258613799,76.0336,168.58,168.45,2.0113]
[1641258614001,2.79141888,168.57,168.45,2.0113]
[1641258614399,3.05141888,168.57,168.45,2.0113]
[1641258615000,3.05141888,168.57,168.45,10.5713]
[1641258615201,2.79141888,168.57,168.45,10.5713]
[1641258615802,4.46787645,168.57,168.45,10.5713]
[1641258616802,2.79141888,168.57,168.45,10.5713]
[1641258617703,1.67645757,168.58,168.46,22.7131]
[1641258617908,1.67645757,168.58,168.47,8.56]
[1641258618102,1.67645757,168.58,168.47,8.82]
[1641258618305,1.67645757,168.58,168.47,9.32]
[1641258618504,1.67645757,168.58,168.48,24.4195]
[1641258618706,2.72534466,168.57,168.49,33.57750453]
[1641258618903,2.72534466,168.57,168.49,34.07750453]
[1641258619104,2.72534466,168.57,168.49,34.33750453]
[1641258619703,2.72534466,168.57,168.49,34.07750453]
[1641258620107,2.72534466,168.57,168.49,9.06]
[1641258620305,2.72534466,168.57,168.49,8.56]
[1641258620507,3.48534466,168.57,168.45,8.56]
[1641258620703,3.48534466,168.57,168.43,36.0093]
[1641258621208,2.84360989,168.52,168.43,36.0093]
[1641258621406,3.34360989,168.52,168.39,8.56]
[1641258621606,8.56,168.51,168.36,23.482]
[1641258622004,9.32,168.51,168.36,23.482]
[1641258622505,1.67645757,168.49,168.37,30.83598642]
[1641258622705,1.67645757,168.49,168.37,39.39598642]
[1641258622906,1.67645757,168.49,168.37,40.15598642]
[1641258623110,1.67645757,168.49,168.38,1.3233]
[1641258623506,1.93645757,168.51,168.38,2.0833]
[1641258623708,2.16654782,168.5,168.38,26.6541]
[1641258624110,2.42654782,168.5,168.38,26.6541]
[1641258624508,2.92654782,168.5,168.38,26.6541]
[1641258624713,26.10252882,168.49,168.38,26.6541]
[1641258624910,26.60252882,168.49,168.38,26.6541]
[1641258625108,26.86252882,168.49,168.38,26.6541]
[1641258625309,26.86252882,168.49,168.38,25.3308]
[1641258625509,26.86252882,168.49,168.38,0.76]
[1641258625912,26.86252882,168.49,168.37,40.15598642]
[1641258627113,0.26,168.49,168.37,40.15598642]
[1641258627310,1.93645757,168.49,168.37,40.15598642]
[1641258627710,0.26,168.49,168.37,40.15598642]
[1641258627911,0.26,168.49,168.38,24.4144]
[1641258628314,4.10300539,168.5,168.38,25.1744]
[1641258628516,2.42654782,168.5,168.38,25.1744]
[1641258630817,1.67645757,168.52,168.38,25.1744]
[1641258631016,1.67645757,168.52,168.39,8.56]
[1641258631316,1.67645757,168.52,168.39,53.8056797]
[1641258631515,1.67645757,168.52,168.4,19.2589797]
[1641258631718,1.67645757,168.52,168.41,8.56]
[1641258631916,2.37599292,168.53,168.41,37.2205797]
[1641258632116,2.37599292,168.53,168.42,24.0482]
[1641258632323,2.37599292,168.53,168.43,8.56]
[1641258632522,2.37599292,168.53,168.44,29.75582461]
[1641258632722,2.37599292,168.53,168.45,8.56]
[1641258632923,2.37599292,168.53,168.45,9.06]
[1641258633125,1.67645757,168.57,168.45,9.32]
[1641258633427,2.43645757,168.57,168.45,9.32]
[1641258634026,3.03823267,168.56,168.45,9.32]
[1641258634426,3.29823267,168.56,168.45,9.32]
[1641258636931,3.03823267,168.56,168.45,9.32]
[1641258637131,2.53823267,168.56,168.45,9.32]
[1641258637433,1.67645757,168.57,168.45,9.32]
[1641258637630,1.67645757,168.57,168.45,32.7316]
[1641258638030,78.22375757,168.58,168.45,32.7316]
[1641258638231,78.48375757,168.58,168.45,32.7316]
[1641258638433,2.14222778,168.57,168.45,32.7316]
[1641258640356,2.14222778,168.57,168.45,32.4716]
[1641258640755,2.64222778,168.57,168.45,32.4716]
[1641258641058,4.57868535,168.57,168.45,32.4716]
[1641258641257,4.07868535,168.57,168.45,32.4716]
[1641258641458,4.57868535,168.57,168.45,32.7316]
[1641258641657,4.57868535,168.57,168.45,32.4716]
[1641258642857,1.67645757,168.56,168.45,32.4716]
[1641258643059,1.93645757,168.56,168.45,32.7316]
[1641258644763,2.43645757,168.56,168.45,32.7316]
[1641258645862,1.67645757,168.56,168.45,32.7316]
[1641258646862,2.17645757,168.56,168.45,32.7316]
[1641258647062,1.67645757,168.56,168.45,32.7316]
[1641258647262,1.93645757,168.56,168.45,32.7316]
[1641258647862,1.67645757,168.55,168.45,32.7316]
[1641258648065,2.82229219,168.54,168.45,32.7316]
[1641258658577,0.32229219,168.54,168.45,32.7316]
[1641258658780,1.67645757,168.56,168.45,32.7316]
[1641258658977,2.43645757,168.56,168.45,32.7316]
[1641258659978,2.98022735,168.55,168.45,32.7316]
[1641258660578,2.48022735,168.55,168.45,32.7316]
[1641258661284,2.17645757,168.56,168.45,32.7316]
[1641258662081,1.67645757,168.56,168.45,32.7316]
[1641258662381,3.08263968,168.56,168.45,32.7316]
[1641258662581,0.5,168.56,168.45,39.6486]
[1641258662983,78.22375757,168.58,168.45,39.6486]
[1641258662984,78.72375757,168.58,168.45,39.6486]
[1641258663581,2.88916179,168.57,168.45,32.7316]
[1641258663884,5.06561936,168.57,168.46,1.2935]
[1641258664081,5.06561936,168.57,168.47,8.56]
[1641258664484,5.06561936,168.57,168.47,9.32]
[1641258664982,3.38916179,168.57,168.47,9.32]
[1641258666489,3.64916179,168.57,168.47,9.32]
[1641258666684,3.64916179,168.57,168.47,9.06]
[1641258667086,5.32561936,168.57,168.47,9.06]
[1641258668088,5.32561936,168.57,168.47,9.32]
[1641258671093,5.32561936,168.57,168.47,8.82]
[1641258671293,1.67645757,168.56,168.47,8.82]
[1641258671495,1.93645757,168.56,168.47,8.82]
[1641258671694,2.43645757,168.56,168.47,0.26]
[1641258671894,2.43645757,168.56,168.45,0.5]
[1641258672094,1.67645757,168.54,168.42,1.3468]
[1641258672294,2.60393335,168.53,168.42,0.5]
[1641258672495,2.86393335,168.53,168.4,17.5398]
[1641258672721,3.36393335,168.53,168.4,18.0398]
[1641258672899,1.67645757,168.51,168.4,18.0398]
[1641258673098,31.42347124,168.5,168.38,98.2584]
[1641258673296,31.42347124,168.5,168.37,29.33405796]
[1641258673497,32.18347124,168.5,168.37,29.33405796]
[1641258673797,1.67645757,168.49,168.37,29.33405796]
[1641258674002,1.93645757,168.49,168.37,29.33405796]
[1641258674197,2.43645757,168.49,168.36,8.56]
[1641258674396,10.99645757,168.49,168.36,0.5]
[1641258674597,10.99645757,168.49,168.35,93.7]
[1641258674796,2.57258734,168.47,168.35,93.7]
[1641258674996,2.57258734,168.47,168.34,9.1138]
[1641258674997,11.39258734,168.47,168.34,9.1138]
[1641258675197,25.52120847,168.43,168.34,9.6138]
[1641258675496,26.02120847,168.43,168.34,0.76]
[1641258675696,25.52120847,168.43,168.34,0.26]
[1641258675897,27.19766604,168.43,168.33,48.86957531]
[1641258676700,25.52120847,168.43,168.33,48.86957531]
[1641258677898,26.02120847,168.43,168.33,24.09017531]
[1641258678097,26.28120847,168.43,168.33,24.09017531]
[1641258679203,26.28120847,168.43,168.33,24.35017531]
[1641258679399,27.95766604,168.43,168.33,24.35017531]
[1641258679599,27.95766604,168.43,168.33,24.09017531]
[1641258679800,40.35864944,168.43,168.33,24.09017531]
[1641258680003,40.09864944,168.43,168.33,24.09017531]
[1641258680227,27.69766604,168.43,168.33,24.09017531]
[1641258680403,2.7905747,168.43,168.33,24.59017531]
[1641258681001,2.7905747,168.43,168.33,24.85017531]
[1641258682701,72.9625,168.45,168.33,24.85017531]
[1641258682900,73.2225,168.45,168.34,23.3601]
[1641258683103,73.2225,168.45,168.34,23.6201]
[1641258683300,73.2225,168.45,168.34,24.1201]
[1641258683500,72.9625,168.45,168.34,24.1201]
[1641258683700,1.67645757,168.46,168.35,9.98669368]
[1641258683901,3.84219323,168.46,168.36,24.2739]
[1641258684104,3.84219323,168.46,168.36,24.5339]
[1641258684310,3.84219323,168.46,168.36,25.0339]
[1641258684509,2.16573566,168.46,168.36,25.0339]
[1641258685009,2.42573566,168.46,168.36,25.0339]
[1641258685810,2.92573566,168.46,168.36,25.0339]
[1641258686012,2.42573566,168.46,168.36,25.0339]
[1641258686211,2.92573566,168.46,168.36,25.0339]
[1641258686815,4.60219323,168.46,168.33,24.09017531]
[1641258687011,4.60219323,168.46,168.32,32.3416]
[1641258687213,20.74819323,168.46,168.3,23.6336]
[1641258687412,1.67645757,168.45,168.3,24.9191]
[1641258687613,10.23645757,168.45,168.3,24.9191]
[1641258687836,10.99645757,168.45,168.3,24.9191]
[1641258688036,10.99645757,168.45,168.3,53.8002787]
[1641258688237,1.67645757,168.43,168.3,53.8002787]
[1641258688437,33.71356796,168.42,168.3,54.3002787]
[1641258688638,33.71356796,168.42,168.3,54.5602787]
[1641258688837,34.47356796,168.42,168.3,54.3002787]
[1641258690042,36.15002553,168.42,168.3,54.3002787]
[1641258690244,36.15002553,168.42,168.3,54.5602787]
[1641258690742,34.47356796,168.42,168.3,54.5602787]
[1641258692745,3.16027099,168.42,168.3,54.5602787]
[1641258692944,1.67645757,168.43,168.31,8.56]
[1641258693146,1.67645757,168.43,168.32,24.2543]
[1641258693346,1.67645757,168.43,168.32,52.5732797]
[1641258693548,75.702,168.44,168.32,52.8332797]
[1641258693946,2.78001376,168.43,168.32,52.8332797]
[1641258694450,2.78001376,168.43,168.32,54.1227797]
[1641258695449,2.78001376,168.43,168.32,53.8627797]
[1641258695650,76.202,168.44,168.32,53.8627797]
[1641258695851,1.67645757,168.45,168.32,55.28947338]
[1641258696051,1.67645757,168.45,168.33,19.2589797]
[1641258696249,1.67645757,168.45,168.34,8.56]
[1641258696452,1.67645757,168.45,168.34,29.74567338]
[1641258696750,1.67645757,168.45,168.35,1.42669368]
[1641258696955,2.61668084,168.47,168.36,8.56]
[1641258697154,2.61668084,168.47,168.37,29.19098525]
[1641258697351,2.61668084,168.47,168.37,29.69098525]
[1641258697552,2.61668084,168.47,168.37,29.95098525]
[1641258697752,2.61668084,168.47,168.37,53.38968525]
[1641258698353,2.61668084,168.47,168.37,54.65008525]
[1641258699055,1.67645757,168.49,168.38,8.56]
[1641258699457,1.67645757,168.49,168.38,9.32]
[1641258699755,1.67645757,168.49,168.39,1.42669368]
[1641258699955,1.67645757,168.49,168.4,8.56]
[1641258700154,1.67645757,168.49,168.43,8.9008]
[1641258700356,1.67645757,168.49,168.44,36.30768387]
[1641258700558,1.67645757,168.53,168.44,43.39868387]
[1641258700857,1.67645757,168.53,168.44,43.89868387]
[1641258701257,1.67645757,168.53,168.44,52.79898387]
[1641258701457,2.72096582,168.54,168.44,52.79898387]
[1641258704065,2.72096582,168.54,168.44,43.89868387]
[1641258704261,2.72096582,168.54,168.44,36.80768387]
[1641258704563,2.98096582,168.54,168.44,36.80768387]
[1641258704961,2.98096582,168.54,168.44,36.30768387]
[1641258705160,3.48096582,168.54,168.44,36.30768387]
[1641258705360,3.48096582,168.54,168.44,36.80768387]
[1641258705560,1.67645757,168.51,168.44,36.80768387]
[1641258705960,4.1394109,168.51,168.44,37.06768387]
[1641258706161,1.67645757,168.54,168.44,37.06768387]
[1641258707195,4.37621111,168.55,168.44,37.06768387]
[1641258707791,2.69975354,168.55,168.44,37.06768387]
[1641258707990,2.69975354,168.55,168.44,38.31898387]
[1641258708391,4.37621111,168.55,168.44,38.31898387]
[1641258708592,23.10166669,168.54,168.44,38.31898387]
[1641258708791,23.10166669,168.54,168.44,38.05898387]
[1641258708991,23.36166669,168.54,168.44,38.05898387]
[1641258709696,25.03812426,168.54,168.44,38.05898387]
[1641258710993,1.93645757,168.54,168.44,38.05898387]
[1641258711193,1.67645757,168.54,168.44,38.31898387]
[1641258712093,4.37621111,168.55,168.44,38.31898387]
[1641258715201,1.67645757,168.55,168.44,38.31898387]
[1641258716003,1.67645757,168.56,168.45,22.8969]
[1641258716201,1.67645757,168.56,168.45,31.4569]
[1641258716404,4.93495169,168.56,168.45,32.2169]
[1641258716902,2.75849412,168.56,168.45,32.2169]
[1641258717904,95.9248,168.6,168.45,32.2169]
[1641258718306,96.4248,168.6,168.45,32.2169]
[1641258718507,96.6848,168.6,168.45,32.2169]
[1641258718706,96.6848,168.6,168.46,1.258]
[1641258718907,2.46128725,168.59,168.46,1.758]
[1641258719112,2.72128725,168.59,168.46,2.018]
[1641258719306,3.22128725,168.59,168.46,2.018]
[1641258720207,2.72128725,168.59,168.46,2.018]
[1641258721009,6.71062277,168.58,168.46,2.018]
[1641258721209,1.67645757,168.55,168.46,1.518]
[1641258721410,2.73556083,168.54,168.46,1.518]
[1641258721611,4.4120184,168.54,168.46,1.518]
[1641258722514,2.73556083,168.54,168.46,2.018]
[1641258722911,1.67645757,168.55,168.46,2.018]
[1641258724614,1.67645757,168.55,168.47,8.56]
[1641258725015,1.67645757,168.55,168.47,9.32]
[1641258727818,4.39729814,168.56,168.47,9.32]
[1641258731620,1.67645757,168.55,168.47,9.32]
[1641258735129,4.39729814,168.56,168.47,9.32]
[1641258740553,4.39729814,168.56,168.47,9.06]
[1641258741952,4.39729814,168.56,168.47,9.32]
[1641258742153,1.67645757,168.56,168.47,9.32]
[1641258742556,1.67645757,168.56,168.47,32.3055]
[1641258743257,1.67645757,168.57,168.47,39.4475]
[1641258743456,1.67645757,168.57,168.49,8.8978]
[1641258743656,1.67645757,168.57,168.51,31.93476058]
[1641258743856,1.67645757,168.57,168.51,47.18776058]
[1641258744058,1.67645757,168.6,168.51,47.44776058]
[1641258744256,1.67645757,168.6,168.51,48.87445426]
[1641258744856,1.67645757,168.63,168.51,48.87445426]
[1641258745059,1.67645757,168.63,168.52,24.4012]
[1641258745356,1.67645757,168.63,168.53,8.56]
[1641258745559,4.14963128,168.65,168.53,10.24669368]
[1641258745757,4.14963128,168.65,168.54,1.42669368]
[1641258745957,4.14963128,168.65,168.55,8.56]
[1641258746157,2.47317371,168.65,168.55,8.56]
[1641258746357,2.47317371,168.65,168.55,9.32]
[1641258748660,2.47317371,168.65,168.56,8.8937]
[1641258748859,2.47317371,168.65,168.57,8.56]
[1641258749062,2.47317371,168.65,168.58,28.80812606]
[1641258749261,2.47317371,168.65,168.59,8.56]
[1641258749461,2.47317371,168.65,168.59,9.32]
[1641258749661,1.67645757,168.66,168.59,9.32]
[1641258751063,1.67645757,168.66,168.59,18.2121]
[1641258751464,1.67645757,168.69,168.59,19.63879368]
[1641258751665,1.67645757,168.69,168.59,42.89679368]
[1641258752366,1.67645757,168.69,168.59,44.14189368]
[1641258753366,1.67645757,168.69,168.6,8.8921]
[1641258753567,1.67645757,168.69,168.61,8.56]
[1641258753969,1.67645757,168.69,168.61,9.32]
[1641258755175,79.79343387,168.7,168.61,9.32]
[1641258756375,1.67645757,168.69,168.61,9.32]
[1641258757178,78.1169763,168.7,168.61,9.32]
[1641258758178,31.41834475,168.69,168.61,8.82]
[1641258758577,31.41834475,168.69,168.58,28.80812606]
[1641258758778,39.24434475,168.69,168.58,29.30812606]
[1641258759011,39.24434475,168.69,168.58,0.5]
[1641258759379,39.24434475,168.69,168.55,32.8485]
[1641258760080,39.24434475,168.69,168.55,60.0733957]
[1641258760279,39.24434475,168.69,168.55,36.2848957]
[1641258761482,39.24434475,168.69,168.55,9.32]
[1641258761883,47.80434475,168.69,168.55,9.32]
[1641258763687,47.80434475,168.69,168.55,9.06]
[1641258764087,49.23103843,168.69,168.55,0.5]
[1641258764287,49.23103843,168.69,168.52,0.5]
[1641258764487,22.8777,168.68,168.52,0.5]
[1641258764687,22.8777,168.68,168.49,28.63665415]
[1641258764688,10.81978165,168.67,168.49,10.4013]
[1641258764887,12.74647533,168.67,168.49,10.4013]
[1641258765088,1.42669368,168.66,168.5,24.76184862]
[1641258765288,8.56,168.65,168.5,24.76184862]
[1641258765488,1.67645757,168.59,168.5,25.26184862]
[1641258765688,4.34644175,168.59,168.5,25.26184862]
[1641258765990,4.34644175,168.59,168.5,25.52184862]
[1641258768415,1.67645757,168.59,168.5,25.52184862]
[1641258768620,1.67645757,168.59,168.51,8.56]
[1641258768817,1.67645757,168.59,168.51,38.2793]
[1641258769117,1.67645757,168.59,168.52,11.3456849]
[1641258769416,1.67645757,168.63,168.53,19.9056849]
[1641258769817,1.67645757,168.63,168.54,1.42669368]
[1641258770017,1.67645757,168.63,168.55,8.56]
[1641258770216,2.22887039,168.65,168.55,8.56]
[1641258770420,2.22887039,168.65,168.55,9.32]
[1641258770819,3.90532796,168.65,168.55,9.32]
[1641258772320,2.22887039,168.65,168.55,9.32]
[1641258772520,2.22887039,168.65,168.55,10.74669368]
[1641258772724,1.67645757,168.66,168.55,10.74669368]
[1641258772921,1.67645757,168.66,168.56,24.1245]
[1641258773121,1.67645757,168.66,168.57,26.75684319]
[1641258773521,1.67645757,168.66,168.57,27.51684319]
[1641258773723,2.99498563,168.65,168.57,27.51684319]
[1641258777424,27.36898977,168.65,168.57,27.25684319]
[1641258777624,27.36898977,168.65,168.57,0.5]
[1641258777823,27.36898977,168.65,168.56,9.06]
[1641258778523,29.04544734,168.65,168.57,30.48755096]
[1641258778927,29.04544734,168.65,168.57,31.24755096]
[1641258779425,4.6714432,168.65,168.57,31.24755096]
[1641258779826,2.99498563,168.65,168.57,31.24755096]
[1641258781130,2.99498563,168.65,168.52,8.56]
[1641258781431,123.33211415,168.64,168.48,23.7966]
[1641258781836,124.09211415,168.64,168.46,76.4519]
[1641258782130,26.35523177,168.63,168.46,27.29603477]
[1641258782332,11.06999173,168.62,168.46,27.29603477]
[1641258782533,12.75668541,168.62,168.46,27.29603477]
[1641258782734,11.82999173,168.62,168.46,27.79603477]
[1641258783033,11.82999173,168.62,168.46,28.05603477]
[1641258783235,13.5064493,168.62,168.46,28.05603477]
[1641258783835,13.5064493,168.62,168.46,53.25792845]
[1641258785434,13.5064493,168.62,168.46,25.96189368]